bitfinex-derivatives/quotes_BTCF0:USTF0_20260207
["timestamp","ask_amount","ask_price","bid_price","bid_amount"]
[1770505757612,0.03272675,69068.0,69031.0,0.04797171]
[1770505757913,0.014486,69076.0,69031.0,0.04797171]
[1770505757914,0.03272675,69058.0,69031.0,0.04797171]
[1770505759812,0.03372675,69058.0,69031.0,0.04797171]
[1770505761612,0.014493,69043.0,69031.0,0.04797171]
[1770505764811,0.03232725,69051.0,69023.0,0.04797171]
[1770505765008,0.014494,69041.0,69023.0,0.04797171]
[1770505765918,0.03189534,69064.0,69032.0,0.014495]
[1770505766116,0.03189534,69064.0,69035.0,0.04797171]
[1770505766412,0.014486,69078.0,69010.0,0.0145]
[1770505766413,0.014491,69055.0,69038.0,0.04797171]
[1770505766620,0.014493,69044.0,69029.0,0.04797171]
[1770505766816,0.014493,69044.0,69011.0,0.0002]
[1770505766817,0.01449,69056.0,69030.0,0.04797171]
[1770505767117,0.03266281,69062.0,69030.0,0.04797171]
[1770505767611,0.01449,69059.0,69032.0,0.04797171]
[1770505767811,0.01449,69056.0,69032.0,0.04797171]
[1770505769709,0.03218141,69079.0,69038.0,0.04797171]
[1770505769908,0.014487,69074.0,69050.0,0.04797171]
[1770505770108,0.014487,69071.0,69050.0,0.04797171]
[1770505770312,0.014486,69075.0,69050.0,0.04797171]
[1770505771518,0.03157226,69068.0,69042.0,0.04797171]
[1770505771717,0.014489,69063.0,69042.0,0.04797171]
[1770505774917,0.03157226,69068.0,69042.0,0.04797171]
[1770505775518,0.01449,69056.0,69042.0,0.04797171]
[1770505775715,0.01449,69056.0,69033.0,0.04484894]
[1770505775915,0.02980752,69061.0,69033.0,0.04484894]
[1770505776117,0.014492,69050.0,69033.0,0.04484894]
[1770505779322,0.014493,69043.0,69033.0,0.04484894]
[1770505780116,0.014493,69043.0,69020.0,0.04484894]
[1770505780418,0.014493,69043.0,69004.0,0.11540839]
[1770505780419,0.014493,69046.0,69022.0,0.04484894]
[1770505780618,0.014491,69054.0,69028.0,0.04484894]
[1770505782414,0.014491,69054.0,69011.0,0.12990839]
[1770505782415,0.014491,69054.0,69030.0,0.04484894]
[1770505782614,0.014492,69050.0,69030.0,0.04484894]
[1770505783122,0.014488,69065.0,69030.0,0.04484894]
[1770505783123,0.014492,69048.0,69030.0,0.04484894]
[1770505783426,0.02913569,69052.0,69030.0,0.04484894]
[1770505784023,0.014492,69048.0,69030.0,0.04484894]
[1770505784415,0.04362669,69052.0,69030.0,0.04484894]
[1770505784616,0.014491,69052.0,69030.0,0.04484894]
[1770505786218,0.014492,69050.0,69030.0,0.04484894]
[1770505786420,0.14715153,69060.0,69022.0,0.04484894]
[1770505786421,0.014495,69035.0,69022.0,0.04484894]
[1770505787123,0.014494,69038.0,69022.0,0.04484894]
[1770505789621,0.014494,69041.0,69022.0,0.04484894]
[1770505792423,0.02620399,69057.0,69022.0,0.04484894]
[1770505792626,0.02620399,69057.0,69010.0,0.0145]
[1770505792627,0.02620399,69057.0,69024.0,0.04484894]
[1770505792828,0.014491,69054.0,69030.0,0.04484894]
[1770505793229,0.014491,69051.0,69030.0,0.04484894]
[1770505793430,0.014492,69049.0,69030.0,0.04484894]
[1770505794231,0.014492,69047.0,69030.0,0.04484894]
[1770505794530,0.014493,69045.0,69030.0,0.04484894]
[1770505795130,0.045893,69047.0,69022.0,0.04484894]
[1770505796130,0.045893,69047.0,69024.0,0.04484894]
[1770505796731,0.014493,69045.0,69024.0,0.04484894]
[1770505797432,0.014493,69042.0,69024.0,0.04484894]
[1770505797822,0.014494,69040.0,69017.0,0.04484894]
[1770505798532,0.014494,69037.0,69017.0,0.04484894]
[1770505800332,0.060387,69037.0,69017.0,0.04484894]
[1770505800538,0.014497,69024.0,69010.0,0.04484894]
[1770505800935,0.014498,69021.0,69010.0,0.04484894]
[1770505801243,0.014499,69013.0,68988.0,0.04484894]
[1770505801438,0.014501,69007.0,68988.0,0.04484894]
[1770505801740,0.045893,69016.0,68994.0,0.04484894]
[1770505801938,0.47089338,69032.0,68994.0,0.04484894]
[1770505802139,0.014496,69029.0,69005.0,0.04484894]
[1770505802437,0.014497,69023.0,69005.0,0.04484894]
[1770505802631,0.060387,69038.0,69005.0,0.04484894]
[1770505802632,0.014498,69020.0,69005.0,0.04394063]
[1770505802933,0.014498,69022.0,69005.0,0.04394063]
[1770505803138,0.014498,69019.0,68993.0,0.04484894]
[1770505803332,0.014498,69019.0,68997.0,0.04484894]
[1770505803526,0.14715153,69040.0,68999.0,0.04484894]
[1770505803732,0.014496,69031.0,69006.0,0.04484894]
[1770505804133,0.045893,69042.0,69008.0,0.04484894]
[1770505804332,0.014495,69036.0,69013.0,0.04484894]
[1770505804532,0.014494,69040.0,69014.0,0.014499]
[1770505804842,0.014493,69045.0,69017.0,0.04484894]
[1770505805144,0.014493,69045.0,68998.0,0.014502]
[1770505805145,0.045893,69050.0,69027.0,0.014496]
[1770505805336,0.060385,69050.0,69028.0,0.04484894]
[1770505805536,0.42500038,69063.0,69034.0,0.04716842]
[1770505805537,0.04274107,69057.0,69034.0,0.04716842]
[1770505805738,0.01449,69056.0,69034.0,0.04716842]
[1770505806335,0.014493,69042.0,69026.0,0.04716842]
[1770505806731,0.014493,69046.0,69026.0,0.04716842]
[1770505807334,0.014493,69046.0,68999.0,0.11560839]
[1770505807335,0.014494,69040.0,69018.0,0.04716842]
[1770505807933,0.014493,69044.0,69018.0,0.04716842]
[1770505808942,0.015493,69044.0,69018.0,0.04716842]
[1770505809342,0.015493,69044.0,69000.0,0.014502]
[1770505809343,0.001,69044.0,69020.0,0.04716842]
[1770505810242,0.014493,69043.0,69020.0,0.04716842]
[1770505810636,0.014494,69040.0,69020.0,0.04716842]
[1770505811440,0.04274107,69054.0,69020.0,0.04716842]
[1770505811947,0.04371281,69050.0,69021.0,0.04525453]
[1770505812843,0.014492,69046.0,69026.0,0.04525453]
[1770505817251,0.014493,69044.0,69026.0,0.04525453]
[1770505820446,0.014489,69063.0,69038.0,0.04525453]
[1770505820642,0.04371281,69066.0,69038.0,0.04525453]
[1770505820842,0.014491,69055.0,69038.0,0.04525453]
[1770505821146,0.014491,69055.0,69031.0,0.014496]
[1770505821147,0.014492,69047.0,69027.0,0.04525453]
[1770505821344,0.014493,69044.0,69027.0,0.04525453]
[1770505821543,0.014492,69048.0,69027.0,0.04525453]
[1770505822540,0.01449,69059.0,69036.0,0.04525453]
[1770505822743,0.01449,69056.0,69036.0,0.04525453]
[1770505822941,0.01449,69059.0,69036.0,0.04525453]
[1770505825149,0.014486,69076.0,69014.0,0.1156693]
[1770505825150,0.42500038,69086.0,69054.0,0.04525453]
[1770505825455,0.014486,69077.0,69054.0,0.04525453]
[1770505825857,0.04371281,69086.0,69060.0,0.04525453]
[1770505825858,0.014485,69082.0,69060.0,0.04525453]
[1770505826054,0.04371281,69086.0,69060.0,0.04525453]
[1770505826254,0.014486,69076.0,69051.0,0.04525453]
[1770505826754,0.04371281,69079.0,69054.0,0.014491]
[1770505827057,0.014486,69078.0,69055.0,0.04525453]
[1770505827650,0.014485,69082.0,69057.0,0.04525453]
[1770505828353,0.014486,69079.0,69057.0,0.04525453]
[1770505828963,0.42500038,69097.0,69058.0,0.04525453]
[1770505828964,0.014485,69083.0,69058.0,0.04525453]
[1770505829251,0.014485,69080.0,69058.0,0.04525453]
[1770505829455,0.014486,69077.0,69058.0,0.04525453]
[1770505831458,0.014486,69077.0,69031.0,0.014496]
[1770505831459,0.014484,69089.0,69064.0,0.04525453]
[1770505831657,0.04371281,69096.0,69064.0,0.04525453]
[1770505831858,0.014484,69087.0,69064.0,0.04525453]
[1770505832254,0.014485,69084.0,69064.0,0.04525453]
[1770505832455,0.04371281,69089.0,69056.0,0.04525453]
[1770505832656,0.014487,69071.0,69056.0,0.04525453]
[1770505833455,0.014487,69075.0,69056.0,0.04525453]
[1770505833765,0.014487,69073.0,69056.0,0.04525453]
[1770505836963,0.05819881,69077.0,69056.0,0.04525453]
[1770505839559,0.014486,69077.0,69056.0,0.04525453]
[1770505843765,0.014487,69070.0,69048.0,0.04263045]
[1770505843977,0.04498602,69083.0,69050.0,0.04263045]
[1770505844173,0.014486,69076.0,69056.0,0.04263045]
[1770505846875,0.014486,69079.0,69056.0,0.04263045]
[1770505847075,0.014486,69079.0,69058.0,0.04263045]
[1770505847677,0.04498602,69093.0,69058.0,0.04263045]
[1770505847876,0.86099486,69123.0,69043.0,0.014493]
[1770505847877,0.014482,69096.0,69072.0,0.04263045]
[1770505848979,0.04498602,69101.0,69075.0,0.04263045]
[1770505850279,0.014482,69098.0,69075.0,0.04263045]
[1770505851976,0.57399657,69120.0,69072.0,0.014487]
[1770505851977,0.04498602,69134.0,69112.0,0.04263045]
[1770505852180,0.04498602,69134.0,69082.0,0.086911]
[1770505852181,0.04498602,69129.0,69103.0,0.04263045]
[1770505852383,0.04498602,69127.0,69103.0,0.04263045]
[1770505852580,0.014477,69121.0,69091.0,0.014483]
[1770505852780,0.014477,69121.0,69078.0,0.11516344]
[1770505852781,0.04498602,69124.0,69097.0,0.04263045]
[1770505852980,0.04498602,69124.0,69081.0,0.014485]
[1770505852981,0.04498602,69124.0,69101.0,0.05711145]
[1770505853176,0.04498602,69124.0,69102.0,0.04263045]
[1770505854287,0.04498602,69133.0,69107.0,0.04263045]
[1770505854786,0.05946102,69132.0,69107.0,0.04263045]
[1770505855586,0.014474,69136.0,69109.0,0.04263045]
[1770505855985,0.04498602,69161.0,69134.0,0.04263045]
[1770505856187,0.014469,69156.0,69134.0,0.04263045]
[1770505856392,0.04498602,69159.0,69134.0,0.04263045]
[1770505856691,0.014469,69158.0,69134.0,0.04263045]
[1770505856888,0.01447,69155.0,69134.0,0.04263045]
[1770505857289,0.014465,69177.0,69139.0,0.04263045]
[1770505857290,0.04198602,69177.0,69139.0,0.04263045]
[1770505857493,0.04498602,69164.0,69113.0,0.04263045]
[1770505857691,0.04498602,69164.0,69109.0,0.23796]
[1770505857692,0.04498602,69155.0,69124.0,0.04263045]
[1770505857990,0.04498602,69146.0,69124.0,0.04263045]
[1770505858197,0.04498602,69155.0,69125.0,0.04263045]
[1770505858394,0.01447,69153.0,69125.0,0.04263045]
[1770505859898,0.001,69155.0,69131.0,0.04263045]
[1770505860495,0.001,69155.0,69136.0,0.04263045]
[1770505860694,0.014469,69160.0,69136.0,0.04263045]
[1770505861300,0.04498602,69163.0,69136.0,0.04263045]
[1770505861502,0.04498602,69173.0,69142.0,0.04263045]
[1770505861803,0.014466,69172.0,69144.0,0.04263045]
[1770505862004,0.014468,69163.0,69133.0,0.014474]
[1770505862205,0.014468,69163.0,69134.0,0.04263045]
[1770505862599,0.04498602,69164.0,69142.0,0.04263045]
[1770505862800,0.014465,69177.0,69147.0,0.04263045]
[1770505863005,0.05945102,69177.0,69147.0,0.04263045]
[1770505863191,0.05945202,69174.0,69147.0,0.04263045]
[1770505863393,0.04498602,69174.0,69147.0,0.04263045]
[1770505863797,0.014465,69176.0,69149.0,0.04263045]
[1770505864097,0.014465,69176.0,69151.0,0.04263045]
[1770505864404,0.014462,69193.0,69151.0,0.04263045]
[1770505864405,0.04498602,69178.0,69151.0,0.04263045]
[1770505864603,0.014466,69173.0,69151.0,0.04263045]
[1770505864904,0.04598602,69174.0,69151.0,0.04263045]
[1770505865305,0.04498602,69174.0,69151.0,0.04263045]
[1770505865903,0.014465,69177.0,69151.0,0.04263045]
[1770505866303,0.04683313,69183.0,69156.0,0.04700745]
[1770505866605,0.04683313,69182.0,69156.0,0.04700745]
[1770505866807,0.04683313,69181.0,69156.0,0.04700745]
[1770505867905,0.04683313,69181.0,69157.0,0.014469]
[1770505868097,0.04683313,69181.0,69157.0,0.06147645]
[1770505868301,0.04683313,69181.0,69158.0,0.04700745]
[1770505869505,0.04683313,69190.0,69166.0,0.04700745]
[1770505869709,0.04683313,69190.0,69168.0,0.04700745]
[1770505870109,0.04683313,69189.0,69151.0,0.06147745]
[1770505870301,0.04683313,69179.0,69152.0,0.04700745]
[1770505870608,0.04683313,69179.0,69154.0,0.04700745]
[1770505871200,0.04683313,69179.0,69156.0,0.04700745]
[1770505871509,0.014463,69187.0,69164.0,0.04700745]
[1770505872210,0.014464,69182.0,69164.0,0.04700745]
[1770505874505,0.04675431,69191.0,69164.0,0.04700745]
[1770505875012,0.014463,69187.0,69164.0,0.04700745]
[1770505875204,0.014464,69184.0,69164.0,0.04700745]
[1770505875405,0.014463,69188.0,69164.0,0.04700745]
[1770505876213,0.04675431,69191.0,69164.0,0.04700745]
[1770505876214,0.014463,69185.0,69164.0,0.04700745]
[1770505876711,0.04675431,69174.0,69133.0,0.05059761]
[1770505877009,0.014468,69161.0,69137.0,0.05059761]
[1770505877603,0.04675431,69165.0,69141.0,0.014472]
[1770505877906,0.04675431,69165.0,69144.0,0.05059761]
[1770505878610,0.06122231,69165.0,69144.0,0.05059761]
[1770505879117,0.014467,69167.0,69144.0,0.05059761]
[1770505881702,0.04675431,69171.0,69144.0,0.05059761]
[1770505883410,0.014468,69165.0,69144.0,0.05059761]
[1770505883917,0.014467,69168.0,69144.0,0.05059761]
[1770505884215,0.001,69171.0,69154.0,0.05059761]
[1770505884609,0.001,69171.0,69156.0,0.05059761]
[1770505885514,0.014465,69179.0,69156.0,0.05059761]
[1770505887314,0.06121731,69186.0,69160.0,0.05059761]
[1770505887813,0.06121731,69186.0,69164.0,0.05059761]
[1770505889112,0.014463,69186.0,69164.0,0.05059761]
[1770505891510,0.04675431,69188.0,69164.0,0.05059761]
[1770505891711,0.04675431,69177.0,69156.0,0.05059761]
[1770505891911,0.014466,69175.0,69156.0,0.05059761]
[1770505894114,0.014461,69195.0,69148.0,0.16511641]
[1770505894115,0.014466,69171.0,69148.0,0.16511641]
[1770505894316,0.04675431,69168.0,69148.0,0.05059761]
[1770505894918,0.014468,69164.0,69148.0,0.05059761]
[1770505895120,0.014468,69164.0,69141.0,0.05059761]
[1770505896214,0.014468,69161.0,69141.0,0.05059761]
[1770505896521,0.06691584,69161.0,69141.0,0.05059761]
[1770505897020,0.014469,69158.0,69141.0,0.05059761]
[1770505897420,0.06691684,69158.0,69133.0,0.06377566]
[1770505897609,0.06691684,69158.0,69134.0,0.04930166]
[1770505897814,0.05244784,69158.0,69134.0,0.04930166]
[1770505898919,0.06691684,69156.0,69134.0,0.04930166]
[1770505899122,0.014469,69160.0,69137.0,0.014473]
[1770505899419,0.014469,69160.0,69138.0,0.04930166]
[1770505900824,0.05244784,69163.0,69138.0,0.04930166]
[1770505901024,0.01447,69152.0,69138.0,0.04930166]
[1770505901619,0.01447,69152.0,69128.0,0.04930166]
[1770505902325,0.01447,69156.0,69132.0,0.04930166]
[1770505902721,0.01447,69156.0,69134.0,0.04930166]
[1770505904314,0.014469,69160.0,69136.0,0.04930166]
[1770505904517,0.014469,69157.0,69136.0,0.04930166]
[1770505905119,0.05244784,69166.0,69136.0,0.04930166]
[1770505905731,0.05244784,69162.0,69136.0,0.04930166]
[1770505906229,0.014469,69158.0,69137.0,0.04930166]
[1770505906528,0.014468,69161.0,69137.0,0.04930166]
[1770505907130,0.014469,69159.0,69137.0,0.04930166]
[1770505909735,0.05244784,69163.0,69137.0,0.04930166]
[1770505910034,0.05244784,69160.0,69137.0,0.04930166]
[1770505911033,0.01447,69156.0,69137.0,0.04930166]
[1770505913334,0.06691684,69160.0,69137.0,0.04930166]
[1770505913528,0.014468,69163.0,69141.0,0.04930166]
[1770505913729,0.014464,69183.0,69147.0,0.04930166]
[1770505913730,0.05244784,69174.0,69147.0,0.04930166]
[1770505914528,0.014468,69165.0,69147.0,0.04930166]
[1770505914728,0.014467,69168.0,69147.0,0.04930166]
[1770505915434,0.014467,69166.0,69147.0,0.04930166]
[1770505915829,0.05344784,69174.0,69147.0,0.04930166]
[1770505916029,0.014466,69172.0,69149.0,0.04930166]
[1770505916229,0.014467,69170.0,69149.0,0.04930166]
[1770505916634,0.014467,69168.0,69149.0,0.04930166]
[1770505916827,0.05244784,69174.0,69149.0,0.04930166]
[1770505917032,0.014467,69166.0,69149.0,0.04930166]
[1770505917237,0.014467,69170.0,69149.0,0.04930166]
[1770505917833,0.014466,69173.0,69150.0,0.014471]
[1770505918035,0.014466,69173.0,69151.0,0.04930166]
[1770505918537,0.014465,69176.0,69153.0,0.04930166]
[1770505918839,0.05244784,69175.0,69155.0,0.04930166]
[1770505919036,0.014467,69169.0,69147.0,0.014471]
[1770505919233,0.05244784,69171.0,69148.0,0.04930166]
[1770505919438,0.014466,69170.0,69148.0,0.04930166]
[1770505920039,0.014466,69170.0,69150.0,0.04930166]
[1770505920537,0.05244784,69178.0,69152.0,0.04930166]
[1770505920538,0.014466,69173.0,69152.0,0.04930166]
[1770505920741,0.05244784,69178.0,69152.0,0.04930166]
[1770505920939,0.05244784,69178.0,69154.0,0.04930166]
[1770505921146,0.014467,69169.0,69154.0,0.04930166]
[1770505921642,0.014469,69160.0,69146.0,0.04930166]
[1770505922840,0.06691684,69160.0,69138.0,0.06377466]
[1770505923144,0.06691684,69160.0,69126.0,0.17165249]
[1770505923145,0.06691684,69156.0,69139.0,0.04930166]
[1770505924248,0.014469,69159.0,69139.0,0.04930166]
[1770505924646,0.014469,69159.0,69119.0,0.21472267]
[1770505924647,0.014468,69163.0,69141.0,0.04930166]
[1770505925848,0.014469,69161.0,69141.0,0.04930166]
[1770505927948,0.05197571,69184.0,69143.0,0.0491151]
[1770505928147,0.014467,69170.0,69146.0,0.0491151]
[1770505931354,0.014467,69168.0,69146.0,0.0491151]
[1770505932349,0.014464,69183.0,69131.0,0.014474]
[1770505932350,0.05352448,69154.0,69131.0,0.16430503]
[1770505932550,0.05352448,69154.0,69110.0,0.014479]
[1770505932551,0.05352448,69154.0,69132.0,0.04978623]
[1770505932752,0.014471,69150.0,69132.0,0.04978623]
[1770505933255,0.05352448,69154.0,69132.0,0.04978623]
[1770505933466,0.05352448,69150.0,69124.0,0.04978623]
[1770505935454,0.014472,69145.0,69124.0,0.04978623]
[1770505935656,0.014472,69143.0,69124.0,0.04978623]
[1770505935959,0.06799648,69143.0,69124.0,0.04978623]
[1770505937549,0.06799648,69143.0,69125.0,0.014476]
[1770505937755,0.05352448,69142.0,69125.0,0.014476]
[1770505938465,0.05352448,69142.0,69125.0,0.06426223]
[1770505942069,0.014473,69141.0,69125.0,0.06426223]
[1770505942264,0.014473,69141.0,69125.0,0.04978623]
[1770505943564,0.05352448,69150.0,69125.0,0.04978623]
[1770505943770,0.05352448,69157.0,69135.0,0.04978623]
[1770505943975,0.014471,69150.0,69135.0,0.04978623]
[1770505944167,0.01284135,69150.0,69135.0,0.04978623]
[1770505944566,0.014471,69148.0,69135.0,0.04978623]
[1770505944769,0.014472,69146.0,69135.0,0.04978623]
[1770505945966,0.05352448,69144.0,69122.0,0.16430503]
[1770505946168,0.014473,69140.0,69122.0,0.06426223]
[1770505946467,0.05352448,69144.0,69123.0,0.04978623]
[1770505946671,0.014474,69135.0,69123.0,0.04978623]
[1770505947168,0.05352448,69138.0,69113.0,0.04978623]
[1770505947473,0.014476,69123.0,69106.0,0.04978623]
[1770505947873,0.014477,69121.0,69106.0,0.04978623]
[1770505949968,0.014477,69119.0,69106.0,0.04978623]
[1770505951076,0.014479,69112.0,69093.0,0.04978623]
[1770505951268,0.014479,69110.0,69093.0,0.04978623]
[1770505951571,0.01448,69108.0,69093.0,0.04978623]
[1770505952376,0.05352448,69115.0,69093.0,0.04978623]
[1770505952876,0.05352448,69113.0,69093.0,0.04978623]
[1770505953479,0.014475,69131.0,69100.0,0.04978623]
[1770505953674,0.014476,69126.0,69103.0,0.04978623]
[1770505954270,0.06800048,69126.0,69103.0,0.04978623]
[1770505954471,0.014477,69123.0,69103.0,0.04978623]
[1770505955076,0.05352448,69126.0,69103.0,0.04978623]
[1770505955677,0.05352448,69126.0,69103.0,0.06426623]
[1770505956975,0.014479,69112.0,69090.0,0.11517144]
[1770505957182,0.05371442,69111.0,69088.0,0.06778225]
[1770505957381,0.05371442,69111.0,69080.0,0.05329825]
[1770505957573,0.05371442,69100.0,69080.0,0.05329825]
[1770505957776,0.014481,69099.0,69080.0,0.05329825]
[1770505958092,0.05371442,69100.0,69080.0,0.06778325]
[1770505959583,0.05371442,69100.0,69080.0,0.05329825]
[1770505960778,0.05371442,69100.0,69065.0,0.11517144]
[1770505960779,0.014479,69113.0,69088.0,0.05329825]
[1770505960979,0.014479,69110.0,69088.0,0.05329825]
[1770505964176,0.05371442,69112.0,69089.0,0.014483]
[1770505964382,0.05371442,69112.0,69090.0,0.05329825]
[1770505964675,0.05371442,69112.0,69092.0,0.05329825]
[1770505967180,0.06819342,69112.0,69092.0,0.05329825]
[1770505967380,0.05371442,69112.0,69092.0,0.05329825]
[1770505968188,0.014476,69124.0,69084.0,0.05329825]
[1770505968189,0.05371442,69104.0,69084.0,0.05329825]
[1770505969090,0.01448,69106.0,69084.0,0.05329825]
[1770505969290,0.05371442,69117.0,69094.0,0.014482]
[1770505969489,0.05371442,69117.0,69095.0,0.05329825]
[1770505970489,0.014479,69111.0,69095.0,0.05329825]
[1770505970687,0.05371442,69108.0,69087.0,0.05329825]
[1770505972396,0.01448,69107.0,69087.0,0.05329825]
[1770505974384,0.014476,69126.0,69091.0,0.05329825]
[1770505974588,0.014475,69128.0,69099.0,0.05329825]
[1770505975195,0.05371442,69130.0,69107.0,0.05329825]
[1770505975500,0.014475,69129.0,69109.0,0.05329825]
[1770505979086,0.014476,69127.0,69109.0,0.05329825]
[1770505980493,0.05371442,69130.0,69109.0,0.05329825]
[1770505980702,0.05371442,69137.0,69113.0,0.05329825]
[1770505980995,0.014474,69135.0,69115.0,0.05329825]
[1770505981192,0.014477,69122.0,69103.0,0.05329825]
[1770505981393,0.05371442,69124.0,69103.0,0.05329825]
[1770505982398,0.06819042,69124.0,69103.0,0.05329825]
[1770505982595,0.014477,69119.0,69103.0,0.05329825]
[1770505982899,0.05371442,69121.0,69096.0,0.05329825]
[1770505983087,0.05371442,69121.0,69099.0,0.014481]
[1770505983088,0.06819142,69121.0,69099.0,0.014481]
[1770505983294,0.06819142,69121.0,69100.0,0.05329825]
[1770505984397,0.06819142,69119.0,69100.0,0.05329825]
[1770505984594,0.06819242,69117.0,69100.0,0.05329825]
[1770505984800,0.06819342,69113.0,69092.0,0.05329825]
[1770505985001,0.05371442,69110.0,69087.0,0.06778225]
[1770505985198,0.05371442,69110.0,69089.0,0.014483]
[1770505985397,0.05371442,69110.0,69089.0,0.06778125]
[1770505985602,0.05371442,69110.0,69090.0,0.0501276]
[1770505989598,0.01448,69107.0,69090.0,0.0501276]
[1770505989802,0.04969957,69106.0,69085.0,0.014484]
[1770505990599,0.04969957,69106.0,69083.0,0.16529904]
[1770505990600,0.06418057,69103.0,69083.0,0.0501276]
[1770505990805,0.04969957,69103.0,69083.0,0.0501276]
[1770505993306,0.05196083,69101.0,69083.0,0.0501276]
[1770505993507,0.05196083,69101.0,69077.0,0.12965744]
[1770505993705,0.05196083,69101.0,69077.0,0.18404981]
[1770505993907,0.05196083,69101.0,69078.0,0.05439237]
[1770505994500,0.06644183,69099.0,69078.0,0.05439237]
[1770505995402,0.06644183,69099.0,69080.0,0.014485]
[1770505997110,0.05196083,69117.0,69083.0,0.05439237]
[1770505997309,0.014479,69112.0,69087.0,0.05439237]
[1770505998405,0.014479,69112.0,69091.0,0.05439237]
[1770505999602,0.05196083,69123.0,69099.0,0.05439237]
[1770506000211,0.05196083,69130.0,69104.0,0.05439237]
[1770506000415,0.014476,69124.0,69104.0,0.05439237]
[1770506001311,0.014475,69128.0,69104.0,0.05439237]
[1770506001517,0.014475,69128.0,69106.0,0.05439237]
[1770506001711,0.001,69123.0,69106.0,0.05439237]
[1770506002515,0.014475,69128.0,69106.0,0.05439237]
[1770506003015,0.05196083,69130.0,69108.0,0.014479]
[1770506003313,0.05196083,69130.0,69109.0,0.05439237]
[1770506003818,0.014475,69129.0,69109.0,0.05439237]
[1770506004019,0.06643583,69129.0,69109.0,0.05439237]
[1770506005018,0.05196083,69129.0,69109.0,0.05439237]
[1770506005413,0.05196083,69129.0,69111.0,0.05439237]
[1770506009619,0.014474,69133.0,69111.0,0.05439237]
[1770506009820,0.014473,69137.0,69113.0,0.05439237]
[1770506010420,0.05196083,69142.0,69102.0,0.11517144]
[1770506010421,0.014473,69139.0,69121.0,0.05439237]
[1770506011918,0.05196083,69140.0,69123.0,0.05439237]
[1770506012122,0.072334,69170.0,69105.0,0.12965144]
[1770506012123,0.05196083,69155.0,69127.0,0.05439237]
[1770506012418,0.05196083,69153.0,69133.0,0.05439237]
[1770506016534,0.014465,69176.0,69117.0,0.11517144]
[1770506016535,0.05419128,69139.0,69118.0,0.05229795]
[1770506017116,0.014473,69138.0,69118.0,0.05229795]
[1770506017318,0.06866528,69134.0,69118.0,0.05229795]
[1770506017533,0.05419128,69129.0,69111.0,0.05229795]
[1770506020325,0.05419128,69129.0,69112.0,0.014479]
[1770506022328,0.05419128,69129.0,69100.0,0.11517144]
[1770506022329,0.014477,69119.0,69104.0,0.05229795]
[1770506022629,0.05419128,69119.0,69100.0,0.05229795]
[1770506022831,0.05419128,69133.0,69108.0,0.05229795]
[1770506023018,0.06866328,69145.0,69123.0,0.05229795]
[1770506023222,0.06866328,69145.0,69125.0,0.05229795]
[1770506023425,0.05419128,69145.0,69126.0,0.06677295]
[1770506023828,0.06866328,69145.0,69126.0,0.05229795]
[1770506024332,0.014472,69143.0,69126.0,0.05229795]
[1770506024538,0.001,69145.0,69126.0,0.05229795]
[1770506024732,0.014472,69144.0,69126.0,0.05229795]
[1770506025032,0.014472,69144.0,69105.0,0.21472267]
[1770506025033,0.05419128,69141.0,69118.0,0.05229795]
[1770506026324,0.05419128,69137.0,69118.0,0.05229795]
[1770506027127,0.014474,69136.0,69118.0,0.05229795]
[1770506028637,0.05419128,69137.0,69118.0,0.05229795]
[1770506029939,0.05419128,69137.0,69114.0,0.014478]
[1770506030235,0.05419128,69135.0,69112.0,0.05229795]
[1770506031130,0.05419128,69131.0,69112.0,0.05229795]
[1770506031332,0.06866628,69130.0,69112.0,0.05229795]
[1770506031549,0.05419128,69129.0,69107.0,0.01448]
[1770506031834,0.05419128,69127.0,69107.0,0.01448]
[1770506032740,0.014476,69125.0,69107.0,0.01448]
[1770506035333,0.014478,69117.0,69104.0,0.11517144]
[1770506035532,0.014478,69114.0,69098.0,0.05229795]
[1770506035743,0.05419128,69115.0,69098.0,0.06677895]
[1770506035940,0.014475,69130.0,69105.0,0.01448]
[1770506036140,0.014475,69128.0,69109.0,0.05229795]
[1770506037038,0.05419128,69135.0,69111.0,0.05229795]
[1770506037442,0.014474,69133.0,69112.0,0.014479]
[1770506037645,0.014474,69133.0,69113.0,0.05229795]
[1770506038044,0.014475,69131.0,69113.0,0.05229795]
[1770506039639,0.06866528,69135.0,69114.0,0.014478]
[1770506039846,0.06866528,69135.0,69115.0,0.05229795]
[1770506040539,0.05419128,69135.0,69115.0,0.05229795]
[1770506040740,0.01447,69153.0,69121.0,0.05229795]
[1770506040741,0.014473,69139.0,69121.0,0.05229795]
[1770506041941,0.072339,69166.0,69121.0,0.05229795]
[1770506041942,0.05419128,69147.0,69121.0,0.05229795]
[1770506042142,0.05419128,69154.0,69133.0,0.05229795]
[1770506042734,0.05419128,69154.0,69135.0,0.05229795]
[1770506042946,0.014469,69159.0,69137.0,0.05229795]
[1770506043146,0.05419128,69161.0,69139.0,0.05229795]
[1770506043442,0.014467,69167.0,69143.0,0.05229795]
[1770506043643,0.05419128,69168.0,69145.0,0.05229795]
[1770506043948,0.05419128,69175.0,69151.0,0.05229795]
[1770506044341,0.014465,69178.0,69151.0,0.05229795]
[1770506044540,0.014466,69173.0,69151.0,0.05229795]
[1770506045747,0.014465,69175.0,69151.0,0.05229795]
[1770506048052,0.014466,69172.0,69151.0,0.05229795]
[1770506048844,0.014465,69176.0,69153.0,0.04858076]
[1770506049842,0.014464,69180.0,69155.0,0.04858076]
[1770506050150,0.014465,69177.0,69155.0,0.04858076]
[1770506050644,0.04938277,69177.0,69155.0,0.04858076]
[1770506050849,0.04938277,69174.0,69155.0,0.04858076]
[1770506051937,0.0002,69196.0,69155.0,0.04858076]
[1770506051938,0.05018767,69183.0,69155.0,0.04858076]
[1770506052140,0.05018767,69183.0,69140.0,0.11517144]
[1770506052141,0.05018767,69183.0,69157.0,0.05345352]
[1770506053249,0.05118767,69183.0,69157.0,0.05345352]
[1770506053455,0.014465,69176.0,69157.0,0.05345352]
[1770506058144,0.014465,69179.0,69157.0,0.05345352]
[1770506058353,0.014465,69176.0,69157.0,0.05345352]
[1770506058553,0.05018767,69180.0,69157.0,0.05345352]
[1770506058753,0.05018767,69177.0,69157.0,0.05345352]
[1770506058947,0.05018767,69174.0,69157.0,0.05345352]
[1770506059454,0.014466,69172.0,69157.0,0.05345352]
[1770506059753,0.014466,69172.0,69134.0,0.17255482]
[1770506059754,0.014468,69165.0,69143.0,0.05345352]
[1770506059952,0.05018767,69174.0,69149.0,0.014471]
[1770506060149,0.05018767,69174.0,69150.0,0.05345352]
[1770506061050,0.014468,69165.0,69150.0,0.05345352]
[1770506061245,0.014468,69162.0,69150.0,0.05345352]